bitfinex-derivatives/quotes_BTCF0:USTF0_20250106
["timestamp","ask_amount","ask_price","bid_price","bid_amount"]
[1736185424074,0.50754147,101380.0,101370.0,0.049316]
[1736185424481,0.55784147,101380.0,101350.0,0.28473407]
[1736185424673,0.45423047,101360.0,101350.0,0.28473407]
[1736185424870,0.3608,101360.0,101350.0,0.28473407]
[1736185425073,0.3608,101360.0,101350.0,0.37816454]
[1736185425789,0.0492,101370.0,101350.0,0.37816454]
[1736185425790,0.41,101370.0,101360.0,0.049321]
[1736185425976,0.0492,101370.0,101360.0,0.14275147]
[1736185426178,0.22339423,101370.0,101360.0,0.14275147]
[1736185427069,0.22339423,101370.0,101360.0,0.049321]
[1736185427070,0.0492,101370.0,101360.0,0.049321]
[1736185427484,0.0492,101370.0,101360.0,0.14375147]
[1736185428982,0.41,101370.0,101360.0,0.14275147]
[1736185429184,0.41,101370.0,101360.0,0.049321]
[1736185429185,0.50543047,101370.0,101360.0,0.049321]
[1736185429483,0.55474647,101370.0,101360.0,0.049321]
[1736185429684,0.461316,101370.0,101360.0,0.049321]
[1736185430184,0.55474647,101370.0,101360.0,0.049321]
[1736185430677,0.60344647,101370.0,101360.0,0.050321]
[1736185431186,0.7776407,101370.0,101360.0,0.050321]
[1736185431485,0.7816407,101370.0,101360.0,0.049321]
[1736185433282,0.79428473,101370.0,101360.0,0.049321]
[1736185434187,0.6200905,101370.0,101360.0,0.049321]
[1736185434687,0.414,101370.0,101360.0,0.14275147]
[1736185434881,0.0532,101370.0,101360.0,0.14275147]
[1736185435087,0.0532,101370.0,101360.0,0.32275147]
[1736185435480,0.004,101370.0,101360.0,0.32275147]
[1736185435682,0.004,101370.0,101360.0,0.43095147]
[1736185436290,0.3648,101370.0,101360.0,0.43095147]
[1736185436588,0.3648,101370.0,101360.0,0.049321]
[1736185436589,0.63236777,101370.0,101360.0,0.049321]
[1736185436975,0.5389373,101370.0,101360.0,0.049321]
[1736185437389,0.5389373,101370.0,101360.0,0.14275147]
[1736185437786,0.3648,101370.0,101360.0,0.14275147]
[1736185437986,0.3648,101370.0,101360.0,0.049321]
[1736185438587,0.3648,101370.0,101360.0,0.14275147]
[1736185439886,0.53903087,101370.0,101360.0,0.14275147]
[1736185440487,0.53903087,101370.0,101360.0,0.049321]
[1736185441584,0.53903087,101370.0,101360.0,0.14275147]
[1736185441792,0.53903087,101370.0,101360.0,0.049321]
[1736185442095,0.53903087,101370.0,101360.0,0.14275147]
[1736185442286,0.17823087,101370.0,101360.0,0.14275147]
[1736185442590,0.17823087,101370.0,101360.0,0.79235147]
[1736185443089,0.17823087,101370.0,101360.0,0.43155147]
[1736185443492,0.004,101370.0,101360.0,0.43155147]
[1736185443698,0.004,101370.0,101360.0,0.79235147]
[1736185444694,1e-06,101370.0,101360.0,0.88578194]
[1736185444895,1e-06,101370.0,101360.0,1.18578194]
[1736185445085,1e-06,101370.0,101360.0,0.88578194]
[1736185445486,1e-06,101370.0,101360.0,0.79235147]
[1736185445998,1e-06,101370.0,101360.0,1.12119201]
[1736185447486,0.4135,101390.0,101360.0,0.94119201]
[1736185447800,0.53651096,101400.0,101380.0,0.14274147]
[1736185448098,0.58851096,101400.0,101390.0,0.14273747]
[1736185448300,0.58703087,101400.0,101390.0,0.14273747]
[1736185448801,0.22623087,101400.0,101390.0,0.14273747]
[1736185449096,0.23523087,101400.0,101390.0,0.14273747]
[1736185449687,0.24423087,101400.0,101390.0,0.14373747]
[1736185450085,0.19223087,101400.0,101390.0,0.50453747]
[1736185450392,0.19223087,101400.0,101390.0,0.70156794]
[1736185450795,0.16317303,101400.0,101390.0,0.60813747]
[1736185451001,0.52397303,101400.0,101390.0,0.14373747]
[1736185451200,0.16317303,101400.0,101390.0,0.14373747]
[1736185451405,0.15417303,101400.0,101390.0,0.14273747]
[1736185451598,0.16317303,101400.0,101390.0,0.14273747]
[1736185452101,0.018,101400.0,101390.0,0.15518357]
[1736185453908,0.3788,101400.0,101390.0,0.0617531]
[1736185454103,0.4319,101400.0,101390.0,0.15518357]
[1736185454304,0.0711,101400.0,101390.0,0.15518357]
[1736185454495,0.018,101400.0,101390.0,0.15518357]
[1736185454708,0.018,101400.0,101390.0,0.51598357]
[1736185456099,0.018,101400.0,101390.0,0.15518357]
[1736185456895,0.16317303,101400.0,101390.0,0.15518357]
[1736185457506,0.16317303,101400.0,101390.0,0.51598357]
[1736185458499,0.02843903,101400.0,101390.0,0.60941404]
[1736185458700,0.17423087,101410.0,101400.0,0.049302]
[1736185458907,0.17423087,101410.0,101400.0,0.75966294]
[1736185459590,0.17423087,101410.0,101400.0,0.14273247]
[1736185459805,0.17423087,101410.0,101400.0,0.50353247]
[1736185460503,0.009,101410.0,101400.0,0.59796294]
[1736185460695,0.018,101410.0,101400.0,0.59896294]
[1736185461100,0.009,101410.0,101400.0,0.59796294]
[1736185461306,0.4146,101420.0,101410.0,0.049297]
[1736185461511,0.4146,101420.0,101410.0,0.14272747]
[1736185463005,0.58883087,101420.0,101410.0,0.14272747]
[1736185463403,0.58983087,101420.0,101410.0,0.14272747]
[1736185463604,0.58983087,101420.0,101410.0,0.049297]
[1736185463911,0.63912287,101420.0,101410.0,0.14272747]
[1736185464110,0.64012287,101420.0,101410.0,0.14272747]
[1736185464413,0.465892,101420.0,101410.0,0.14272747]
[1736185467105,0.4166,101420.0,101410.0,0.14272747]
[1736185469105,0.3628,101420.0,101410.0,0.15492932]
[1736185469302,0.002,101420.0,101410.0,1.16854932]
[1736185469814,0.002,101420.0,101410.0,1.34854932]
[1736185474418,0.002,101420.0,101410.0,1.44197979]
[1736185474611,0.64203087,101440.0,101430.0,0.049287]
[1736185474812,0.64203087,101440.0,101430.0,0.23614794]
[1736185475903,0.59123087,101440.0,101430.0,0.23614794]
[1736185476305,0.008,101440.0,101430.0,0.59794794]
[1736185476510,0.25772995,101460.0,101450.0,0.049277]
[1736185476715,0.25772995,101460.0,101450.0,0.59693794]
[1736185477017,0.25772995,101460.0,101450.0,1.08297794]
[1736185477716,0.25772995,101460.0,101450.0,0.98954747]
[1736185477916,0.41612,101460.0,101450.0,0.14270747]
[1736185478228,0.42312,101460.0,101450.0,0.14370747]
[1736185480112,0.51655047,101460.0,101450.0,0.050277]
[1736185480315,0.56582547,101460.0,101450.0,0.049277]
[1736185480516,0.472395,101460.0,101450.0,0.049277]
[1736185481114,0.481395,101460.0,101450.0,0.14370747]
[1736185481621,0.43212,101460.0,101450.0,0.14370747]
[1736185482519,0.43212,101460.0,101450.0,0.23713794]
[1736185482821,0.07132,101460.0,101450.0,0.23713794]
[1736185483014,0.07132,101460.0,101450.0,0.50450747]
[1736185483213,0.07132,101460.0,101450.0,0.59793794]
[1736185483214,0.01642,101460.0,101450.0,0.59793794]
[1736185483419,0.01642,101460.0,101450.0,0.65713794]
[1736185484615,1e-06,101460.0,101450.0,0.65713794]
[1736185484814,0.3608,101480.0,101470.0,0.049268]
[1736185485014,0.4717,101490.0,101480.0,0.049263]
[1736185485319,0.3608,101490.0,101480.0,0.23612394]
[1736185485620,0.3608,101490.0,101480.0,0.14269347]
[1736185485824,0.1549,101500.0,101490.0,0.049258]
[1736185486022,0.8765,101500.0,101490.0,0.14268847]
[1736185486514,0.8765,101500.0,101490.0,0.32268847]
[1736185487717,0.8805,101500.0,101490.0,0.32368847]
[1736185487924,0.8805,101500.0,101490.0,0.230258]
[1736185488127,1.02718247,101500.0,101490.0,0.051258]
[1736185488624,0.933752,101500.0,101490.0,0.051258]
[1736185489424,0.933752,101500.0,101490.0,0.14468847]
[1736185490122,0.933752,101500.0,101490.0,0.051258]
[1736185490621,1.02718247,101500.0,101490.0,0.051258]
[1736185491917,0.8845,101500.0,101490.0,0.14468847]
[1736185493817,0.97793047,101500.0,101490.0,0.051258]
[1736185494019,0.97793047,101500.0,101470.0,0.049261]
[1736185494217,0.7216,101480.0,101470.0,0.049261]
[1736185494418,0.7216,101480.0,101470.0,0.14269147]
[1736185494925,0.770859,101480.0,101470.0,0.049261]
[1736185495231,0.886859,101480.0,101470.0,0.14369147]
[1736185495721,0.886859,101480.0,101470.0,0.14269147]
[1736185495921,0.890859,101480.0,101470.0,0.14269147]
[1736185497223,0.890859,101480.0,101470.0,0.049261]
[1736185497420,0.890859,101480.0,101470.0,0.14269147]
[1736185500626,0.890859,101480.0,101470.0,0.049261]
[1736185500925,0.049268,101470.0,101460.0,0.049268]
[1736185501129,0.55739847,101470.0,101460.0,0.049268]
[1736185501529,0.55739847,101470.0,101440.0,0.50562758]
[1736185501723,0.3608,101450.0,101440.0,0.55490658]
[1736185502231,0.3608,101450.0,101440.0,0.32270947]
[1736185502827,0.3608,101460.0,101440.0,0.73278847]
[1736185503023,0.3608,101460.0,101450.0,0.14270447]
[1736185504020,0.4147,101470.0,101460.0,0.049269]
[1736185504334,0.4147,101470.0,101460.0,0.14269947]
[1736185504831,0.4147,101470.0,101460.0,0.229269]
[1736185505134,0.463964,101470.0,101460.0,0.049269]
[1736185505429,0.049269,101460.0,101450.0,0.049271]
[1736185505631,0.410069,101460.0,101450.0,0.32270147]
[1736185506133,0.410069,101460.0,101450.0,0.049271]
[1736185506328,0.50349947,101460.0,101450.0,0.049271]
[1736185507733,0.50349947,101460.0,101450.0,0.054271]
[1736185511033,0.59692994,101460.0,101420.0,0.17678704]
[1736185511240,0.45423047,101440.0,101430.0,0.049282]
[1736185511541,0.81503047,101440.0,101430.0,0.049282]
[1736185511734,0.87293047,101440.0,101430.0,0.049282]
[1736185512035,0.92221047,101440.0,101420.0,0.40607704]
[1736185512227,0.45423047,101430.0,101420.0,0.23829]
[1736185512427,0.50351647,101430.0,101420.0,0.009]
[1736185512832,0.50351647,101430.0,101410.0,0.163494]
[1736185513043,0.3608,101420.0,101410.0,0.343494]
[1736185513428,0.3608,101420.0,101410.0,0.35510627]
[1736185513935,0.3608,101420.0,101410.0,0.29600627]
[1736185514331,0.3608,101420.0,101410.0,0.24090627]
[1736185515134,0.45523047,101420.0,101410.0,0.24090627]
[1736185515337,0.50451947,101420.0,101410.0,0.18]
[1736185515538,0.55911947,101420.0,101400.0,0.80090747]
[1736185515727,0.3608,101410.0,101400.0,0.221597]
[1736185516134,0.3608,101410.0,101400.0,0.401597]
[1736185516530,0.3608,101410.0,101400.0,0.49502747]
[1736185517333,0.3608,101410.0,101400.0,0.32272747]
[1736185517534,0.3608,101410.0,101400.0,0.33687913]
[1736185517734,0.410093,101410.0,101400.0,0.19615166]
[1736185517938,0.463793,101410.0,101400.0,0.185]
[1736185518440,0.463793,101410.0,101400.0,0.32772847]
[1736185518642,0.463793,101410.0,101400.0,0.09843047]
[1736185518845,0.463793,101410.0,101400.0,0.005]
[1736185519745,0.55722347,101410.0,101400.0,0.005]
[1736185522545,0.049303,101390.0,101380.0,0.049305]
[1736185522732,0.770903,101390.0,101380.0,0.049305]
[1736185523144,0.888903,101390.0,101380.0,0.049305]
[1736185523848,0.889903,101390.0,101380.0,0.058305]
[1736185524045,0.98333347,101390.0,101380.0,0.009]
[1736185524252,0.889903,101390.0,101380.0,0.009]
[1736185524461,0.889903,101390.0,101380.0,0.015]
[1736185526756,0.7226,101390.0,101380.0,0.15773847]
[1736185526958,0.7226,101390.0,101380.0,0.21663847]
[1736185527351,0.7226,101390.0,101380.0,0.39663847]
[1736185527551,0.771903,101390.0,101380.0,0.33773847]
[1736185527950,0.771903,101390.0,101380.0,0.15773847]
[1736185528358,0.771903,101390.0,101380.0,0.10843047]
[1736185528553,0.771903,101390.0,101380.0,0.015]
[1736185528753,0.98383347,101390.0,101380.0,0.015]
[1736185528957,0.049313,101370.0,101360.0,0.15438429]
[1736185529153,0.770913,101370.0,101360.0,0.15438429]
[1736185530262,0.410113,101370.0,101360.0,0.15738429]
[1736185530558,0.410113,101370.0,101360.0,0.15838429]
[1736185530762,0.770913,101370.0,101360.0,0.15838429]
[1736185531973,0.770913,101370.0,101360.0,0.33838429]
[1736185533261,0.7216,101370.0,101360.0,0.43181476]
[1736185533858,0.3608,101390.0,101370.0,0.049313]
[1736185534060,0.3608,101390.0,101380.0,0.31713847]
[1736185534869,0.412103,101390.0,101380.0,0.14273847]
[1736185536964,0.417103,101390.0,101380.0,0.14273847]
[1736185537563,0.413103,101390.0,101380.0,0.14273847]
[1736185540867,0.3638,101390.0,101380.0,0.14273847]
[1736185541477,0.3638,101390.0,101380.0,0.32273847]
[1736185542666,0.581695,101410.0,101380.0,0.32273847]
[1736185542870,0.410099,101400.0,101390.0,0.14273347]
[1736185544272,0.412099,101400.0,101390.0,0.14273347]
[1736185544877,0.412099,101400.0,101390.0,0.049303]
[1736185545068,0.049303,101390.0,101380.0,0.55497832]
[1736185545267,0.3608,101390.0,101380.0,0.55497832]
[1736185545769,0.3608,101390.0,101380.0,0.31956825]
[1736185545969,0.410103,101390.0,101380.0,0.31956825]
[1736185546169,0.3608,101390.0,101380.0,0.31956825]
[1736185546799,0.3608,101390.0,101380.0,0.32256825]
[1736185547011,0.3608,101390.0,101380.0,0.14573547]
[1736185547607,0.75597897,101410.0,101400.0,0.049298]
[1736185547987,0.75597897,101410.0,101400.0,0.14272847]
[1736185548598,0.581696,101410.0,101400.0,0.14272847]
[1736185548887,0.4211,101410.0,101400.0,0.14272847]
[1736185549580,0.4231,101410.0,101400.0,0.14272847]
[1736185550277,0.472394,101410.0,101400.0,0.14272847]
[1736185551179,0.4231,101410.0,101400.0,0.14272847]
[1736185551882,0.3628,101410.0,101400.0,0.23615894]
[1736185552082,0.3628,101410.0,101400.0,0.35245894]
[1736185553675,0.002,101410.0,101400.0,0.71325894]
[1736185554580,0.002,101410.0,101400.0,0.89009172]
[1736185554886,0.002,101410.0,101400.0,0.90135043]
[1736185556178,0.00147991,101420.0,101400.0,0.90135043]
[1736185556499,0.42149934,101450.0,101430.0,0.049283]
[1736185556694,0.4185,101450.0,101440.0,0.14270847]
[1736185557083,0.123,101460.0,101450.0,0.049273]
[1736185557381,0.62090995,101470.0,101460.0,0.049269]
[1736185557582,0.62090995,101470.0,101460.0,0.23612994]
[1736185557786,0.62090995,101470.0,101460.0,0.41612994]
[1736185558101,0.56320995,101470.0,101460.0,0.41612994]
[1736185558284,0.20240995,101470.0,101460.0,1.31940994]
[1736185558491,0.00147892,101480.0,101470.0,0.049264]
[1736185558787,0.00147892,101480.0,101470.0,0.14269447]
[1736185559386,0.4185,101490.0,101480.0,0.049259]
[1736185559582,0.5789,101500.0,101490.0,0.049254]
[1736185559789,0.4608,101500.0,101490.0,0.23611494]
[1736185560085,0.4608,101500.0,101490.0,0.32268447]
[1736185560290,0.510051,101500.0,101480.0,0.14268847]
[1736185560597,0.510051,101500.0,101490.0,0.14268447]
[1736185560889,0.4608,101500.0,101490.0,0.14268447]
[1736185561280,0.4608,101500.0,101490.0,0.23611494]
[1736185561480,0.4608,101500.0,101490.0,0.14268447]
[1736185561886,0.4698,101500.0,101490.0,0.14368447]
[1736185562086,0.109,101500.0,101490.0,0.23711494]
[1736185562289,0.116,101500.0,101490.0,0.59791494]
[1736185562491,0.116,101500.0,101490.0,0.14368447]
[1736185562983,0.109,101500.0,101490.0,0.14368447]
[1736185563287,0.109,101500.0,101490.0,0.14468447]
[1736185563288,0.116,101500.0,101490.0,0.14468447]
[1736185563482,0.526049,101500.0,101490.0,0.051254]
[1736185563789,0.5353,101500.0,101490.0,0.14368447]
[1736185563992,0.4768,101500.0,101490.0,0.23811494]
[1736185564186,0.116,101500.0,101490.0,0.59891494]
[1736185564490,0.116,101500.0,101490.0,0.71871494]
[1736185564680,0.116,101500.0,101490.0,0.89871494]
[1736185564887,0.116,101500.0,101490.0,0.96061494]
[1736185565393,0.0585,101520.0,101510.0,0.049244]
[1736185565583,0.0585,101520.0,101510.0,0.50347447]
[1736185565780,0.3608,101530.0,101510.0,0.50347447]
[1736185565995,0.3608,101530.0,101520.0,0.14266947]
[1736185566183,0.469931,101540.0,101530.0,0.049235]
[1736185566384,0.469931,101540.0,101530.0,0.14266547]
[1736185566890,0.4207,101540.0,101530.0,0.14266547]
[1736185567087,0.4207,101540.0,101530.0,0.049235]
[1736185567286,0.4207,101540.0,101530.0,0.14266547]
[1736185567596,0.4297,101540.0,101530.0,0.14366547]
[1736185568091,0.3698,101540.0,101530.0,0.14366547]
[1736185568996,0.3698,101540.0,101530.0,0.14466547]
[1736185569286,0.009,101540.0,101530.0,0.14466547]
[1736185569682,0.36227832,101550.0,101540.0,0.04923]
[1736185569887,0.3608,101560.0,101540.0,0.59689094]
[1736185570090,0.23182731,101580.0,101550.0,0.54766094]
[1736185570390,0.23182731,101580.0,101570.0,0.14264547]
[1736185570789,0.73527078,101580.0,101560.0,0.50344947]
[1736185570992,0.50344747,101570.0,101550.0,0.62833447]
[1736185571290,0.3608,101560.0,101530.0,0.07255649]
[1736185571497,0.3608,101550.0,101540.0,0.14265947]
[1736185571885,0.3608,101560.0,101550.0,0.049224]
[1736185572083,0.3608,101560.0,101550.0,0.14265447]
[1736185572384,0.50344847,101570.0,101550.0,0.049224]
[1736185572589,0.50344847,101570.0,101550.0,0.14265447]
[1736185572990,0.3608,101570.0,101560.0,0.14265047]
[1736185573290,0.59394994,101580.0,101570.0,0.049215]
[1736185573590,0.53414994,101580.0,101570.0,0.14264547]
[1736185574497,0.17334994,101580.0,101570.0,0.50344547]
[1736185575197,0.17334994,101580.0,101570.0,0.59687594]
[1736185575490,0.18234994,101580.0,101570.0,0.59787594]
[1736185575696,0.18234994,101580.0,101570.0,0.59887594]
[1736185576294,0.13057306,101580.0,101570.0,0.59887594]
[1736185576498,0.20240995,101590.0,101570.0,0.59687594]
[1736185576699,0.20240995,101590.0,101580.0,0.65717094]
[1736185576899,0.1,101600.0,101590.0,0.049206]
[1736185577097,0.1,101600.0,101590.0,0.54949684]
[1736185577300,0.1,101600.0,101590.0,0.60799684]
[1736185577602,0.1,101600.0,101590.0,0.54949684]
[1736185577797,0.1,101600.0,101590.0,0.410006]
[1736185578000,0.60029084,101600.0,101580.0,0.049209]
[1736185578199,0.54949984,101590.0,101570.0,0.049214]
[1736185578494,0.60909984,101590.0,101570.0,0.049214]
[1736185578700,0.469609,101590.0,101570.0,0.049214]
[1736185578897,0.469609,101590.0,101570.0,0.049211]
[1736185579100,0.001,101590.0,101580.0,0.18970084]
[1736185579294,0.001,101590.0,101580.0,0.55050084]
[1736185579697,0.001,101590.0,101580.0,0.60860084]
[1736185579897,0.001,101590.0,101580.0,0.60760084]
[1736185580304,0.001,101590.0,101580.0,0.60860084]
[1736185580502,0.001,101590.0,101580.0,0.78860084]
[1736185580804,0.1,101600.0,101580.0,0.78860084]
[1736185581002,0.1,101600.0,101590.0,0.54949684]
[1736185581203,0.1,101600.0,101590.0,1.03493684]
[1736185582392,0.1,101600.0,101590.0,0.67413684]
[1736185582812,0.102,101600.0,101590.0,0.67413684]
[1736185583306,0.1,101600.0,101590.0,1.03493684]
[1736185583511,0.42187646,101630.0,101590.0,1.17542768]
[1736185583708,0.42187646,101630.0,101620.0,0.18868184]
[1736185584006,0.3608,101640.0,101620.0,0.54948184]
[1736185584306,0.3608,101650.0,101640.0,0.049181]
[1736185584509,0.3608,101650.0,101640.0,0.18867184]
[1736185584713,0.3608,101650.0,101640.0,0.049181]
[1736185585206,0.54946784,101650.0,101640.0,0.049181]
[1736185585405,0.54946784,101650.0,101630.0,0.409985]
[1736185585616,0.54946784,101650.0,101640.0,0.001]
[1736185586300,0.049185,101640.0,101620.0,0.04919]
[1736185586505,0.3608,101630.0,101620.0,0.04919]
[1736185587504,0.471785,101640.0,101630.0,0.049186]
[1736185587703,0.3608,101640.0,101630.0,0.18967684]
[1736185588303,0.3608,101640.0,101630.0,0.18867684]
[1736185588610,0.3608,101650.0,101640.0,0.049178]
[1736185589302,0.470973,101660.0,101650.0,0.049176]
[1736185589503,0.530073,101660.0,101650.0,0.049176]
[1736185589703,0.71873884,101660.0,101640.0,0.049179]
[1736185589903,0.3608,101650.0,101640.0,0.049179]
[1736185590202,0.54946684,101650.0,101630.0,0.049182]
[1736185590403,0.3608,101640.0,101630.0,0.049182]
[1736185590910,0.54946684,101650.0,101640.0,0.049181]
[1736185590911,0.409976,101650.0,101640.0,0.049181]
[1736185591209,0.3608,101650.0,101640.0,0.18867184]
[1736185591407,0.4199,101660.0,101650.0,0.049176]
[1736185591610,0.4199,101660.0,101650.0,0.18866684]
[1736185592011,0.60856284,101660.0,101650.0,0.049176]
[1736185592204,0.3608,101660.0,101650.0,0.18866684]
[1736185592604,0.3608,101660.0,101650.0,0.049176]
[1736185592807,0.3608,101660.0,101650.0,0.18866684]
[1736185593111,0.3608,101670.0,101650.0,0.18866684]
[1736185593415,0.409963,101680.0,101670.0,0.049167]
[1736185593416,0.3608,101680.0,101670.0,0.049167]
[1736185593710,0.409962,101680.0,101670.0,0.049167]
[1736185593916,0.3608,101680.0,101650.0,0.13949084]
[1736185594113,0.3608,101660.0,101650.0,0.18866684]
[1736185594313,0.3608,101670.0,101660.0,0.049172]
[1736185594510,0.3608,101670.0,101660.0,0.36866284]
[1736185594716,0.3608,101670.0,101660.0,0.229172]
[1736185594908,0.409967,101670.0,101660.0,0.049172]
[1736185595306,0.60635784,101670.0,101650.0,0.058175]
[1736185595511,0.4173,101660.0,101650.0,0.058175]
[1736185595707,0.466472,101660.0,101650.0,0.058175]
[1736185596118,0.3608,101660.0,101650.0,0.19766584]
[1736185596416,0.15417862,101660.0,101650.0,0.19766584]
[1736185596614,0.15417862,101660.0,101650.0,0.18866584]
[1736185596813,0.3608,101670.0,101650.0,0.18866584]
[1736185597008,0.3608,101670.0,101660.0,0.18866284]
[1736185597208,0.3608,101670.0,101660.0,0.19066284]
[1736185598419,0.3608,101670.0,101660.0,0.18866284]
[1736185598918,0.3608,101690.0,101660.0,0.54946284]
[1736185599113,0.3608,101690.0,101680.0,0.18865284]
[1736185599806,0.409957,101690.0,101680.0,0.18865284]
[1736185600120,0.049162,101680.0,101670.0,0.409964]
[1736185600305,0.465862,101680.0,101670.0,0.049164]
[1736185600511,0.523662,101680.0,101660.0,0.18865884]
[1736185600710,0.0591,101670.0,101660.0,0.18865884]
[1736185600916,0.4199,101670.0,101660.0,0.18865884]
[1736185601126,0.469067,101670.0,101660.0,0.049168]
[1736185601326,0.3608,101670.0,101660.0,0.18865884]
[1736185601920,0.469063,101680.0,101670.0,0.001]
[1736185602118,0.469063,101680.0,101670.0,0.050167]
[1736185603420,0.469063,101680.0,101670.0,0.049167]
[1736185604322,0.469063,101680.0,101630.0,0.13949084]
[1736185604323,1.19502902,101680.0,101630.0,0.13949084]
[1736185604624,0.409977,101650.0,101640.0,0.23784784]
[1736185605119,0.527177,101650.0,101640.0,0.049178]
[1736185606524,0.049185,101640.0,101630.0,0.049185]
[1736185606821,0.409985,101640.0,101630.0,0.049185]
[1736185607016,0.3608,101650.0,101630.0,0.18867584]
[1736185607216,0.3608,101650.0,101640.0,0.18867184]
[1736185608013,0.14448881,101660.0,101640.0,0.54947184]
[1736185608218,0.588868,101670.0,101650.0,0.18866684]
[1736185608416,0.588868,101670.0,101660.0,0.049172]
[1736185609024,0.588868,101670.0,101660.0,0.229172]
[1736185609219,0.588868,101670.0,101660.0,0.049172]
[1736185610626,0.527168,101670.0,101660.0,0.049172]
[1736185610814,0.409968,101670.0,101660.0,0.049172]
[1736185611523,0.049172,101660.0,101650.0,0.22284771]
[1736185611726,0.409972,101660.0,101650.0,0.22284771]
[1736185612121,0.409972,101660.0,101650.0,0.40284771]
[1736185612523,0.409972,101660.0,101650.0,0.22284771]
[1736185612925,0.409972,101660.0,101650.0,0.17367271]
[1736185613325,0.409972,101660.0,101650.0,0.17767271]
[1736185614227,0.54946284,101660.0,101650.0,0.17967271]
[1736185614634,0.409972,101660.0,101650.0,0.31916355]
[1736185614829,0.72221681,101680.0,101650.0,0.59990317]
[1736185615034,0.42796752,101670.0,101660.0,0.18866184]
[1736185615330,0.409969,101670.0,101660.0,0.18866184]
[1736185616242,0.409969,101670.0,101660.0,0.36233455]
[1736185617137,0.409969,101670.0,101660.0,0.22284371]
[1736185617336,0.409969,101670.0,101660.0,0.45440733]
[1736185618937,0.54945984,101670.0,101660.0,0.40523633]
[1736185619734,0.81064227,101670.0,101650.0,0.17367271]
[1736185620038,0.409972,101660.0,101650.0,0.17367271]
[1736185620427,0.049176,101650.0,101640.0,1.08551254]
[1736185621342,0.049176,101650.0,101640.0,0.409977]
[1736185621734,0.472476,101650.0,101640.0,0.052177]
[1736185622039,0.472476,101650.0,101640.0,0.003]
[1736185622239,0.61196684,101650.0,101640.0,0.003]
[1736185622435,0.66926684,101650.0,101640.0,0.003]
[1736185622636,0.815104,101650.0,101640.0,0.003]
[1736185622841,0.67561316,101650.0,101640.0,0.003]
[1736185623040,0.815104,101650.0,101640.0,0.003]
[1736185623242,0.815104,101650.0,101640.0,0.01]
[1736185623434,0.66926684,101650.0,101640.0,0.01]
[1736185626138,0.529776,101650.0,101640.0,0.01]
[1736185626444,0.049176,101650.0,101640.0,0.55947184]
[1736185626644,0.049173,101660.0,101650.0,0.049176]
[1736185626938,0.468268,101670.0,101660.0,0.049172]
[1736185629236,0.107468,101670.0,101660.0,0.049172]
[1736185629432,0.28234796,101670.0,101660.0,0.18866284]
[1736185629636,0.22404796,101670.0,101660.0,0.18866284]
[1736185629836,0.22404796,101670.0,101660.0,0.54946284]
[1736185630546,0.22404796,101670.0,101660.0,0.049172]
[1736185630547,0.049168,101670.0,101660.0,0.049172]
[1736185631550,0.19490852,101670.0,101660.0,0.049172]
[1736185631744,0.19490852,101670.0,101660.0,0.409972]
[1736185632241,0.19490852,101670.0,101660.0,0.54946284]
[1736185632545,0.19490852,101670.0,101660.0,0.049172]
[1736185633538,0.19490852,101670.0,101660.0,0.409972]
[1736185634337,0.36978848,101670.0,101660.0,0.409972]
[1736185634533,0.36978848,101670.0,101660.0,0.589972]
[1736185634740,0.36978848,101670.0,101660.0,0.72946284]
[1736185635543,0.19490852,101670.0,101660.0,0.36866284]
[1736185635847,0.19490852,101670.0,101660.0,0.18866284]
[1736185636044,0.19490852,101670.0,101660.0,0.049172]
[1736185636235,0.049172,101660.0,101650.0,0.05985145]
[1736185636443,0.049172,101660.0,101640.0,0.5866323]
[1736185636637,0.111472,101660.0,101640.0,0.72612314]
[1736185636954,0.111472,101660.0,101650.0,0.049176]
[1736185637147,0.56497202,101670.0,101650.0,0.13949084]
[1736185637350,0.61414002,101670.0,101660.0,0.18866284]
[1736185638055,0.61414002,101670.0,101660.0,0.049172]
[1736185638241,0.049172,101660.0,101650.0,0.051174]
[1736185639242,0.409972,101660.0,101650.0,0.006]
[1736185639442,0.471972,101660.0,101650.0,0.006]
[1736185641250,0.61146284,101660.0,101650.0,0.006]
[1736185641446,0.73576284,101660.0,101650.0,0.006]
[1736185644349,0.54946284,101660.0,101650.0,0.006]
[1736185644655,1.04453804,101660.0,101650.0,0.006]
[1736185645656,0.049186,101630.0,101620.0,0.049188]
[1736185645849,0.409986,101630.0,101620.0,0.049188]
[1736185646357,0.049186,101630.0,101620.0,0.049188]
[1736185646755,0.049186,101630.0,101620.0,0.18867884]
[1736185646940,0.049186,101630.0,101620.0,0.20467884]
[1736185647347,0.19476441,101630.0,101620.0,0.20467884]
[1736185647554,0.19476441,101630.0,101620.0,0.21500947]
[1736185647858,0.19476441,101630.0,101620.0,0.07551863]
[1736185648454,0.14557841,101630.0,101620.0,0.57580947]
[1736185648658,0.19476441,101630.0,101620.0,0.07551863]
[1736185649243,0.55556441,101630.0,101620.0,0.07551863]
[1736185649656,0.67197685,101630.0,101620.0,0.07551863]
[1736185649956,0.31117685,101630.0,101620.0,0.07551863]
[1736185650253,0.67197685,101630.0,101620.0,0.07551863]
[1736185650855,0.31117685,101630.0,101620.0,0.07551863]
[1736185651257,0.67197685,101630.0,101620.0,0.07551863]
[1736185651453,0.19476441,101630.0,101620.0,0.07551863]
[1736185651860,0.55556441,101630.0,101620.0,0.02633063]
[1736185652058,0.19476441,101630.0,101620.0,0.02633063]
[1736185652260,0.39535525,101630.0,101620.0,0.02633063]
[1736185652661,0.75615525,101630.0,101620.0,0.02633063]
[1736185652957,0.70966341,101630.0,101620.0,0.02633063]
[1736185654165,0.25586441,101630.0,101620.0,0.02633063]
[1736185654362,0.25586441,101630.0,101620.0,0.07552163]
[1736185655156,0.34886341,101630.0,101620.0,0.07552163]
[1736185655757,0.70966341,101630.0,101620.0,0.07552163]
[1736185657357,0.70966341,101630.0,101620.0,0.02633063]
[1736185657861,0.70966341,101630.0,101620.0,0.07552163]
[1736185658066,0.25586441,101630.0,101620.0,0.07552163]
[1736185658967,0.22657004,101630.0,101620.0,0.43632163]
[1736185659156,0.22657004,101630.0,101620.0,0.07552163]